fUSD/lending_fUSD_20240608
["ID","MTS","AMOUNT","RATE_DAILY","PERIOD"]
[328820638,1717836661564,-540.75,0.00029863,4]
[328820639,1717836661573,-500.0,0.00029863,4]
[328820640,1717836661583,-151.0,0.00029863,7]
[328820641,1717836661593,-540.75,0.00029863,4]
[328820642,1717836661602,-500.0,0.00029863,4]
[328820643,1717836661612,-540.75,0.00029863,4]
[328820644,1717836661622,-151.4579,0.00029863,7]
[328820645,1717836661631,-500.0,0.00029863,4]
[328820646,1717836661641,-540.77,0.00029863,4]
[328820647,1717836661650,-420.23546306,0.00029863,4]
[328820648,1717836661660,-384.1287838,0.00029863,4]
[328820649,1717836661670,-500.0,0.00029863,4]
[328820650,1717836661679,-500.0,0.00029863,4]
[328820651,1717836661689,-500.0,0.00029863,4]
[328820652,1717836661699,-549.25615197,0.00029863,4]
[328820653,1717836661708,-500.0,0.00029863,4]
[328820654,1717836661717,-134.02432062,0.00029863,4]
[328820655,1717836662449,-365.97567938,0.00029863,4]
[328820656,1717836662460,-500.0,0.00029863,4]
[328820657,1717836662469,-500.0,0.00029863,4]
[328820658,1717836662479,-500.39176181,0.00029863,4]
[328820659,1717836662491,-1488.84,0.00029863,4]
[328820660,1717836662502,-1299.41059122,0.00029863,4]
[328820661,1717836662516,-189.42940878,0.00029863,4]
[328820662,1717836662529,-1488.84,0.00029863,4]
[328820663,1717836662539,-512.18084239,0.00029863,4]
[328820664,1717836662550,-150.47978621,0.00029863,4]
[328820665,1717836662586,-1338.36021379,0.00029863,4]
[328820666,1717836662596,-1488.84,0.00029863,4]
[328820667,1717836662605,-500.0,0.00029863,4]
[328820668,1717836662615,-1488.84,0.00029863,4]
[328820669,1717836662625,-500.0,0.00029863,4]
[328820670,1717836662634,-1488.84,0.00029863,4]
[328820671,1717836662643,-500.0,0.00029863,4]
[328820672,1717836662653,-1488.84,0.00029863,4]
[328820673,1717836662662,-500.0,0.00029863,4]
[328820674,1717836662671,-545.71163896,0.00029863,4]
[328820675,1717836662680,-1404.08038705,0.00029863,4]
[328820676,1717836662697,-84.75961295,0.00029863,4]
[328820677,1717836662706,-423.74038705,0.00029863,4]
[328820678,1717836662718,-1065.09961295,0.00029863,4]
[328820679,1717836662728,-335.9273406,0.00029863,4]
[328820680,1717836662902,-150.0,0.00028507,2]
[328820681,1717836662913,-1152.9126594,0.00029863,4]
[328820682,1717836662923,-1488.84,0.00029863,4]
[328820683,1717836662933,-1488.84,0.00029863,4]
[328820684,1717836662943,-1488.84,0.00029863,4]
[328820685,1717836662952,-416.10179669,0.00029863,4]
[328820686,1717836662982,-150.0,0.00028434,2]
[328820687,1717836662991,-150.0,0.00028535,2]
[328820688,1717836663001,-1072.73820331,0.00029863,4]
[328820689,1717836663010,-1488.84,0.00029863,4]
[328820690,1717836663021,-1488.84,0.00029863,4]
[328820691,1717836663031,-500.0,0.00029863,4]
[328820692,1717836663041,-1488.84,0.00029863,4]
[328820693,1717836663053,-500.0,0.00029863,4]
[328820694,1717836663062,-1488.84,0.00029863,4]
[328820695,1717836663072,-500.0,0.00029863,4]
[328820696,1717836663083,-1488.84,0.00029863,4]
[328820697,1717836663092,-500.0,0.00029863,4]
[328820698,1717836663103,-1488.84,0.00029863,4]
[328820699,1717836663112,-109.59040522,0.00029863,4]
[328820700,1717836663144,-150.0,0.00028614,2]
[328820701,1717836663153,-150.0,0.00028615,2]
[328820702,1717836663164,-272.64496918,0.00028673,2]
[328820703,1717836663173,-390.40959478,0.00029863,4]
[328820704,1717836663183,-1488.84,0.00029863,4]
[328820705,1717836663194,-79.45023604,0.00029863,4]
[328820706,1717836663209,-420.54976396,0.00029863,4]
[328820707,1717836663219,-688.10042635,0.00029863,4]
[328820708,1717836663231,-800.73957365,0.00029863,4]
[328820709,1717836663241,-500.0,0.00029863,4]
[328820710,1717836663250,-47.50250527,0.00029863,4]
[328820711,1717836663358,-150.0,0.00028657,2]
[328820712,1717836663368,-1441.36450774,0.00029863,4]
[328820713,1717836663378,-500.0,0.00029863,4]
[328820714,1717836663387,-500.0,0.00029863,4]
[328820715,1717836663397,-500.0,0.00029863,4]
[328820716,1717836663407,-528.77054613,0.00029863,4]
[328820717,1717836663416,-500.0,0.00029863,4]
[328820718,1717836663426,-163.95747834,0.00029863,4]
[328820719,1717836663435,-500.0,0.00029863,4]
[328820720,1717836663444,-208.67745461,0.00029863,4]
[328820721,1717836663457,-500.0,0.00029863,4]
[328820722,1717836663467,-500.0,0.00029863,4]
[328820723,1717836663476,-530.0862247,0.00029863,4]
[328820724,1717836663486,-500.0,0.00029863,4]
[328820725,1717836663496,-500.0,0.00029863,4]
[328820726,1717836663506,-500.0,0.00029863,4]
[328820727,1717836663516,-500.0,0.00029863,4]
[328820728,1717836663527,-500.0,0.00029863,4]
[328820729,1717836663537,-500.0,0.00029863,4]
[328820730,1717836663546,-500.0,0.00029863,4]
[328820731,1717836663556,-500.0,0.00029863,4]
[328820732,1717836663567,-500.0,0.00029863,4]
[328820733,1717836663576,-500.0,0.00029863,4]
[328820734,1717836663587,-357.70113447,0.00029863,4]
[328820735,1717836663597,-500.0,0.00029863,4]
[328820736,1717836663606,-500.0,0.00029863,4]
[328820737,1717836663615,-500.0,0.00029863,4]
[328820738,1717836663625,-603.80137212,0.00029863,4]
[328820739,1717836663635,-500.0,0.00029863,4]
[328820740,1717836663644,-500.0,0.00029863,4]
[328820741,1717836663653,-500.0,0.00029863,4]
[328820742,1717836663663,-144.05833566,0.00029863,4]
[328820743,1717836757911,174.07,0.00027264,120]
[328820747,1717837160271,5800.0,0.00013537,2]
[328820748,1717837183026,5800.0,0.00013529,2]
[328820749,1717837205790,5800.0,0.0001352,2]
[328820750,1717837210776,568.02142592,0.00013529,2]
[328820751,1717837228560,5800.0,0.00013512,2]
[328820752,1717837251907,5800.0,0.00013503,2]
[328820760,1717837832148,-1196.2104061,0.00017258,2]
[328820761,1717837832160,-609.53814777,0.00017258,2]
[328820762,1717837832170,-575.91863724,0.00017259,2]
[328820763,1717837832180,-484.42951065,0.00017533,2]
[328820764,1717837832190,-1941.7314,0.00017656,2]
[328820765,1717837832200,-210.22983375,0.00017757,2]
[328820782,1717837839767,-3445.29316625,0.00017757,2]
[328820784,1717837839778,-500.0,0.000185,2]
[328820785,1717837839789,-2318.0,0.000192,2]
[328820786,1717837839800,-704.0,0.000192,2]
[328820787,1717837839811,-329.96,0.000192,2]
[328820788,1717837839821,-1200.57437401,0.000192,2]
[328820789,1717837839874,-925.37892,0.000192,2]
[328820790,1717837839887,-532.19052,0.000192,2]
[328820791,1717837839900,-1234.3044306,0.000192,2]
[328820792,1717837839914,-150.0,0.00019621,2]
[328820793,1717837839925,-978.0,0.00020337,2]
[328820794,1717837839936,-287.38,0.00020337,2]
[328820795,1717837839947,-1650.0,0.00020337,2]
[328820796,1717837839959,-1830.0,0.00020337,2]
[328820797,1717837839970,-3170.0,0.00020337,2]
[328820798,1717837839980,-651.277,0.00020337,2]
[328820799,1717837839991,-546.0,0.00020337,2]
[328820800,1717837840002,-1977.0,0.00020337,2]
[328820801,1717837840013,-2343.408,0.00020337,2]
[328820802,1717837840024,-5153.0,0.00020337,2]
[328820803,1717837840035,-290.0,0.00020337,2]
[328820804,1717837840045,-1065.0,0.00020337,2]
[328820805,1717837840055,-202.0,0.00021984,2]
[328820806,1717837840066,-523.23,0.0002216,2]
[328820807,1717837840076,-356.399,0.00023337,2]
[328820808,1717837840086,-1650.0,0.00023337,2]
[328820809,1717837840096,-1830.0,0.00023337,2]
[328820810,1717837840108,-546.0,0.00023337,2]
[328820811,1717837840119,-1977.0,0.00023337,2]
[328820812,1717837840129,-5153.0,0.00023337,2]
[328820813,1717837840139,-290.0,0.00023337,2]
[328820814,1717837840149,-1065.0,0.00023337,2]
[328820815,1717837840159,-1000.0,0.00023969,2]
[328820816,1717837840170,-500.0,0.00023995,2]
[328820817,1717837840181,-250.0,0.00024096,2]
[328820818,1717837840191,-28478.42,0.00024246,2]
[328820819,1717837840202,-187.93,0.000243,2]
[328820820,1717837840212,-250.0,0.00024367,2]
[328820821,1717837840223,-23890.0,0.00024367,2]
[328820822,1717837840233,-659.16,0.00024383,2]
[328820823,1717837840244,-247.62,0.00024384,2]
[328820824,1717837840255,-523.23,0.00024424,2]
[328820825,1717837840266,-154.92,0.00024443,2]
[328820826,1717837840275,-2598.18,0.00024591,2]
[328820827,1717837840287,-1646.45574665,0.000248,3]
[328820828,1717837840297,-250.0,0.00024915,2]
[328820829,1717837840306,-150.0,0.00024984,2]
[328820830,1717837840317,-6795.64360929,0.00024999,2]
[328820831,1717837840328,-1250.0,0.00025,2]
[328820832,1717837840337,-326.04313189,0.00025,2]
[328820833,1717837840347,-1392.53462796,0.00025,2]
[328820834,1717837840356,-325.92553654,0.00025073,2]
[328820835,1717837840367,-155.0,0.00025073,2]
[328820836,1717837840377,-225.14837841,0.00025073,2]
[328820837,1717837840387,-154.92,0.0002508,2]
[328820838,1717837840397,-154.92,0.00025716,2]
[328820839,1717837840407,-201.106473,0.000258,2]
[328820840,1717837840418,-163.26,0.0002589,2]
[328820841,1717837840428,-1440.061,0.00026337,2]
[328820842,1717837840438,-1830.0,0.00026337,2]
[328820843,1717837840449,-297.686,0.00026337,2]
[328820844,1717837840458,-1977.0,0.00026337,2]
[328820845,1717837840468,-5153.0,0.00026337,2]
[328820846,1717837840478,-290.0,0.00026337,2]
[328820847,1717837840488,-1065.0,0.00026337,2]
[328820849,1717837840498,-1753.02,0.00026383,2]
[328820851,1717837840507,-1646.45574665,0.00026512,3]
[328820854,1717837840517,-452.96950587,0.00026576,2]
[328820855,1717837840528,-523.23,0.00026688,2]
[328820857,1717837840540,-1111.82271981,0.00026757,2]
[328820859,1717837840549,-13316.0,0.00026796,2]
[328820860,1717837840559,-156.89139326,0.00026857,2]
[328820862,1717837840570,-1332.68758063,0.000269,2]
[328820864,1717837840580,-1000.0,0.00026965,2]
[328820866,1717837840589,-20000.0,0.00027,3]
[328820868,1717837840599,-4028.94618361,0.00027,2]
[328820870,1717837840609,-1300.0,0.00027,2]
[328820872,1717837840619,-180.0,0.00027013,2]
[328820874,1717837840629,-323.68,0.00027087,2]
[328820876,1717837840639,-152.71711911,0.00027089,2]
[328820878,1717837840649,-1111.82271975,0.00027106,2]
[328820880,1717837840659,-155.01619505,0.00027141,2]
[328820882,1717837840669,-21677.1803,0.00027164,2]
[328820885,1717837840680,-2011.83744862,0.000272,2]
[328820887,1717837840690,-155.89137977,0.00027225,2]
[328820890,1717837840702,-1332.68758063,0.00027233,2]
[328820893,1717837840712,-155.10754839,0.00027253,2]
[328820895,1717837840723,-329.52877398,0.00027263,2]
[328820897,1717837840734,-1203.69209202,0.00027264,2]
[328820899,1717837840744,-34978.80794722,0.00027264,2]
[328820901,1717837840755,-258.0384721,0.00027264,2]
[328820903,1717837840766,-446.88297159,0.00027264,2]
[328820906,1717837840776,-156.01619076,0.00027304,2]
[328820909,1717837840786,-806.15787801,0.0002739,2]
[328820911,1717837840796,-172.46,0.00027397,2]
[328820913,1717837840806,-2485.09344287,0.000274,2]
[328820915,1717837840816,-154.40598489,0.0002743,2]
[328820917,1717837840831,-1111.82271975,0.00027455,2]
[328820919,1717837840841,-154.40598489,0.00027509,2]
[328820921,1717837840851,-163.09969391,0.0002751,2]
[328820923,1717837840863,-172.1584606,0.00027514,2]
[328820925,1717837840873,-1332.68758063,0.00027567,2]
[328820927,1717837840884,-155.89137977,0.00027585,2]
[328820929,1717837840894,-155.89137977,0.00027589,2]
[328820931,1717837840906,-152.37846222,0.00027745,2]
[328820933,1717837840916,-857.103962,0.00027759,2]
[328820935,1717837840926,-155.89137977,0.00027768,2]
[328820937,1717837840936,-200.0,0.000278,2]
[328820939,1717837840947,-1111.82271975,0.00027805,2]
[328820941,1717837840957,-1332.68758063,0.000279,2]
[328820943,1717837840967,-155.89137977,0.00027925,2]
[328820945,1717837840976,-156.01619076,0.00027968,2]
[328820947,1717837840986,-175.91,0.0002799,2]
[328820949,1717837840997,-154.40598489,0.00027994,2]
[328820951,1717837841006,-20000.0,0.00028,5]
[328820953,1717837841016,-299.744586,0.00028,2]
[328820955,1717837841026,-154.40598489,0.00028009,2]
[328820957,1717837841035,-20000.0,0.000281,7]
[328820959,1717837841044,-857.103962,0.00028106,2]
[328820961,1717837841054,-1111.82271975,0.00028154,2]
[328820963,1717837841064,-1332.68758063,0.00028233,2]
[328820965,1717837841073,-155.89137977,0.00028265,2]
[328820967,1717837841084,-155.00128118,0.0002832,2]
[328820969,1717837841094,-155.01619505,0.00028377,2]
[328820971,1717837841103,-155.00128118,0.00028387,2]
[328820973,1717837841113,-857.103962,0.00028453,2]
[328820975,1717837841123,-1111.82271975,0.00028503,2]
[328820977,1717837841133,-1332.68758063,0.00028567,2]
[328820979,1717837841142,-154.35435876,0.00028609,2]
[328820981,1717837841152,-152.37846222,0.00028712,2]
[328820983,1717837841162,-155.89137977,0.00028755,2]
[328820985,1717837841171,-857.103962,0.000288,2]
[328820987,1717837841181,-1111.82271975,0.00028852,2]
[328820989,1717837841190,-1332.68758063,0.000289,2]
[328820991,1717837841201,-155.01619506,0.00028945,2]
[328820993,1717837841211,-523.23,0.00028952,2]
[328820995,1717837841220,-420.0,0.00028966,5]
[328820997,1717837841230,-20000.0,0.00029,7]
[328820999,1717837841239,-20000.0,0.00029,3]
[328821001,1717837841249,-180.0,0.00029,13]
[328821003,1717837841258,-1350.0,0.00029,2]
[328821005,1717837841268,-714.03763505,0.00029,2]
[328821007,1717837841277,-1488.41303663,0.00029,2]
[328821009,1717837841287,-4169.40701343,0.00029,2]
[328821011,1717837841297,-5000.0,0.00029,2]
[328821013,1717837841306,-5000.0,0.00029,7]
[328821015,1717837841316,-300.0,0.00029,7]
[328821017,1717837841325,-164.73197819,0.00029047,2]
[328821019,1717837841335,-857.103962,0.00029147,2]
[328821021,1717837841344,-1111.82271975,0.00029202,15]
[328821023,1717837841353,-155.00128118,0.00029206,2]
[328821025,1717837841363,-1332.68758063,0.00029233,15]
[328821027,1717837841373,-154.35435876,0.0002925,2]
[328821029,1717837841383,-476.26092759,0.00029264,2]
[328821031,1717837841392,-155.06386358,0.00029295,2]
[328821032,1717837841402,-1706.388,0.00029337,2]
[328821034,1717837841411,-1977.0,0.00029337,2]
[328821036,1717837841421,-4568.331,0.00029337,2]
[328821038,1717837841431,-254.163,0.00029337,2]
[328821040,1717837841441,-1065.0,0.00029337,2]
[328821042,1717837841452,-152.71711911,0.00029402,2]
[328821044,1717837841461,-155.89137977,0.00029503,2]
[328821046,1717837841471,-1111.82271975,0.00029551,15]
[328821048,1717837841481,-930.11307936,0.00029564,4]
[328821050,1717837841492,-1332.68758063,0.00029567,15]
[328821052,1717837841501,-150.0,0.0002961,2]
[328821054,1717837841511,-163.48925102,0.00029611,2]
[328821056,1717837841520,-4000.0,0.000297,2]
[328821058,1717837841531,-150.0,0.00029717,2]
[328821060,1717837841541,-16193.6119484,0.00029763,2]
[328821062,1717837841551,-185.60269822,0.00029763,2]
[328821064,1717837841560,-1714.34139766,0.00029763,2]
[328821066,1717837841570,-431.44956625,0.00029763,2]
[328821068,1717837841580,-150.0,0.00029766,2]
[328821070,1717837841589,-150.0,0.00029773,2]
[328821072,1717837841599,-16193.61194831,0.00029775,2]
[328821074,1717837841608,-150.0,0.0002978,2]
[328821076,1717837841617,-16193.61194831,0.00029788,2]
[328821078,1717837841627,-150.0,0.0002979,2]
[328821080,1717837841638,-160.0,0.000298,2]
[328821082,1717837841648,-413.0,0.000298,14]
[328821084,1717837841659,-345.0,0.000298,2]
[328821086,1717837841670,-190.0,0.000298,14]
[328821089,1717837841680,-200.0,0.000298,2]
[328821091,1717837841690,-150.0,0.000298,6]
[328821093,1717837841702,-16193.61194831,0.000298,2]
[328821095,1717837841711,-16193.61194831,0.00029813,2]
[328821096,1717837841721,-16193.61194831,0.00029825,2]
[328821098,1717837841730,-150.0,0.00029826,2]
[328821100,1717837841740,-150.0,0.00029829,2]
[328821102,1717837841750,-1714.34139764,0.00029832,2]
[328821104,1717837841760,-431.44956624,0.00029832,2]
[328821106,1717837841770,-800.0,0.00029836,2]
[328821108,1717837841780,-16193.61194831,0.00029838,2]
[328821111,1717837841790,-16193.61194831,0.0002985,2]
[328821113,1717837841800,-2348.6278585,0.00029852,2]
[328821126,1717837841934,-151.72,0.00029853,2]
[328821129,1717837841944,-151.72,0.00029853,2]
[328821131,1717837841954,-13367.6750106,0.00029855,2]
[328821133,1717837841963,-24548.00161707,0.00029855,2]
[328821152,1717837842209,-70334.97081117,0.00029855,2]
[328821153,1717837842228,-7454.19749996,0.00029855,2]
[328821154,1717837842237,-5108.523741,0.00029855,2]
[328821155,1717837842247,-3801.4545972,0.0002986,2]
[328821156,1717837842256,-155.0,0.00029861,2]
[328821157,1717837842265,-2052.28596185,0.00029861,2]
[328821158,1717837842276,-792.17660086,0.00029861,2]
[328821159,1717837842286,-652.80819883,0.00029861,2]
[328821160,1717837842296,-705.78037508,0.00029861,2]
[328821161,1717837842306,-9502.53927096,0.00029861,2]
[328821162,1717837842316,-863.50817945,0.00029861,3]
[328821163,1717837842325,-156.26226767,0.00029862,2]
[328821164,1717837842336,-6251.16028243,0.00029862,2]
[328821165,1717837842346,-16193.61194831,0.00029863,2]
[328821166,1717837842356,-7468.37107636,0.00029863,13]
[328821167,1717837842368,-9992.83246852,0.00029863,13]
[328821168,1717837842380,-1081.44168439,0.00029863,13]
[328821169,1717837842391,-4143.36187317,0.00029863,13]
[328821170,1717837842510,-1416.86856537,0.00029863,13]
[328821171,1717837842522,-531.79482725,0.00029863,13]
[328821172,1717837842534,-816.70025,0.00029863,13]
[328821173,1717837842554,-608.78013881,0.00029863,13]
[328821174,1717837842589,-2940.96388949,0.00029863,13]
[328821175,1717837842600,-3619.06063722,0.00029863,13]
[328821184,1717837845390,-159.05442987,0.00025072,2]
[328821185,1717837845400,-384.0,0.00029,5]
[328821187,1717837845410,-24616.35195378,0.00029863,13]
[328821188,1717837845423,-4661.42581735,0.00029863,13]
[328821189,1717837845657,-308.57768031,0.00029863,13]
[328821190,1717837845671,-4295.36866241,0.00029863,13]
[328821191,1717837845739,-13270.61688742,0.00029863,13]
[328821196,1717837845842,-3261.46110328,0.00029863,13]
[328821197,1717837845854,-2931.29999932,0.00029863,13]
[328821198,1717837845865,-3378.03739983,0.00029863,13]
[328821199,1717837845878,-26638.58390392,0.00029863,13]
[328821200,1717837845955,-683.15282096,0.00029863,13]
[328821201,1717837846143,-3863.409,0.00029863,13]
[328821202,1717837846155,-2951.52100116,0.00029863,13]
[328821203,1717837846247,-432.16,0.00029863,13]
[328821204,1717837846259,-3050.0,0.00029863,13]
[328821205,1717837846273,-498.7999998,0.00029863,13]
[328821206,1717837846285,-4650.0,0.00029863,13]
[328821207,1717837846298,-13072.68984172,0.00029863,13]
[328821208,1717837846308,-500.0,0.00029863,4]
[328821209,1717837846317,-500.0,0.00029863,4]
[328821210,1717837846327,-500.0,0.00029863,4]
[328821212,1717837846336,-500.0,0.00029863,4]
[328821213,1717837846346,-500.0,0.00029863,4]
[328821214,1717837846355,-500.0,0.00029863,4]
[328821215,1717837846365,-500.0,0.00029863,4]
[328821216,1717837846374,-500.0,0.00029863,4]
[328821217,1717837846384,-500.0,0.00029863,4]
[328821218,1717837846395,-500.0,0.00029863,4]
[328821219,1717837846404,-500.0,0.00029863,4]
[328821220,1717837846414,-500.0,0.00029863,4]
[328821221,1717837846423,-500.0,0.00029863,4]
[328821222,1717837846433,-500.0,0.00029863,4]
[328821224,1717837846443,-500.0,0.00029863,4]
[328821226,1717837846454,-500.0,0.00029863,4]
[328821228,1717837846464,-500.0,0.00029863,4]
[328821230,1717837846474,-500.0,0.00029863,4]
[328821232,1717837846483,-500.0,0.00029863,4]
[328821235,1717837846493,-500.0,0.00029863,4]
[328821238,1717837846503,-500.0,0.00029863,4]
[328821241,1717837846513,-500.0,0.00029863,4]
[328821244,1717837846522,-345.40933804,0.00029863,4]
[328821246,1717837846532,-500.0,0.00029863,4]
[328821248,1717837846542,-500.0,0.00029863,4]
[328821250,1717837846552,-341.20700744,0.00029863,4]
[328821252,1717837846561,-512.47857949,0.00029863,4]
[328821254,1717837846570,-418.45650017,0.00029863,4]
[328821256,1717837846580,-508.05635077,0.00029863,4]
[328821258,1717837846589,-507.42759447,0.00029863,4]
[328821260,1717837846599,-508.26904349,0.00029863,4]
[328821262,1717837846608,-500.0,0.00029863,4]
[328821264,1717837846618,-158.18643527,0.00029863,4]
[328821266,1717837846627,-500.0,0.00029863,4]
[328821268,1717837846637,-500.0,0.00029863,4]
[328821270,1717837846646,-500.0,0.00029863,4]
[328821272,1717837846655,-500.0,0.00029863,4]
[328821274,1717837846664,-402.02355204,0.00029863,4]
[328821276,1717837846673,-648.49558146,0.00029863,4]
[328821278,1717837846683,-542.06189622,0.00029863,4]
[328821280,1717837846692,-500.0,0.00029863,4]
[328821281,1717837846702,-519.49681547,0.00029863,4]
[328821283,1717837846711,-508.36749611,0.00029863,4]
[328821285,1717837846721,-510.42065865,0.00029863,4]
[328821287,1717837846730,-521.75981702,0.00029863,4]
[328821289,1717837846739,-500.0,0.00029863,4]
[328821291,1717837846748,-521.70207298,0.00029863,4]
[328821293,1717837846758,-509.28662427,0.00029863,4]
[328821295,1717837846768,-500.0,0.00029863,4]
[328821296,1717837846777,-554.1371117,0.00029863,4]
[328821297,1717837846787,-500.0,0.00029863,4]
[328821298,1717837846962,-225.04950007,0.00029863,4]
[328821299,1717837846976,-504.50586149,0.00029863,4]
[328821300,1717837846987,-543.36579886,0.00029863,4]
[328821301,1717837846997,-500.0,0.00029863,4]
[328821303,1717837847008,-521.44608735,0.00029863,4]
[328821305,1717837847018,-515.47917717,0.00029863,4]
[328821306,1717837847028,-431.51176944,0.00029863,4]
[328821307,1717837847037,-558.59600559,0.00029863,4]
[328821308,1717837847048,-339.95879972,0.00029863,4]
[328821309,1717837847058,-500.0,0.00029863,4]
[328821310,1717837847069,-500.0,0.00029863,4]
[328821311,1717837847079,-500.0,0.00029863,4]
[328821312,1717837847089,-151.0,0.00029863,7]
[328821313,1717837847098,-500.0,0.00029863,4]
[328821314,1717837847108,-500.0,0.00029863,4]
[328821315,1717837847118,-241.429316,0.00029863,7]
[328821316,1717837847128,-500.0,0.00029863,4]
[328821317,1717837847138,-500.0,0.00029863,4]
[328821318,1717837847148,-627.87518911,0.00029863,4]
[328821319,1717837847158,-151.0,0.00029863,7]
[328821320,1717837847168,-151.0,0.00029863,7]
[328821321,1717837847179,-1000.0,0.00029863,4]
[328821322,1717837847188,-1006.30972249,0.00029863,4]
[328821323,1717837847197,-500.0,0.00029863,4]
[328821324,1717837847207,-287.17753761,0.00029863,4]
[328821325,1717837847217,-500.0,0.00029863,4]
[328821326,1717837847226,-503.59062058,0.00029863,4]
[328821327,1717837847236,-385.87766036,0.00029863,4]
[328821328,1717837847245,-528.603757,0.00029863,4]
[328821329,1717837847256,-466.70501774,0.00029863,4]
[328821330,1717837847266,-166.57240819,0.00029863,4]
[328821331,1717837847276,-500.0,0.00029863,4]
[328821332,1717837847287,-551.81437718,0.00029863,4]
[328821333,1717837847297,-500.0,0.00029863,4]
[328821334,1717837847308,-176.53643373,0.00029863,4]
[328821335,1717837847320,-500.0,0.00029863,4]
[328821336,1717837847331,-500.0,0.00029863,4]
[328821337,1717837847341,-369.0930094,0.00029863,4]
[328821338,1717837847351,-577.02652898,0.00029863,4]
[328821339,1717837847361,-500.0,0.00029863,4]
[328821340,1717837847374,-500.0,0.00029863,4]
[328821341,1717837847384,-500.0,0.00029863,4]
[328821342,1717837847393,-500.0,0.00029863,4]
[328821343,1717837847403,-220.36983041,0.00029863,4]
[328821344,1717837847412,-500.0,0.00029863,4]
[328821345,1717837847422,-500.0,0.00029863,4]
[328821346,1717837847432,-500.0,0.00029863,4]
[328821347,1717837847442,-500.0,0.00029863,4]
[328821348,1717837847452,-503.57390677,0.00029863,4]
[328821349,1717837847461,-500.0,0.00029863,4]
[328821350,1717837847471,-500.0,0.00029863,4]
[328821351,1717837847481,-500.0,0.00029863,4]
[328821352,1717837847490,-500.0,0.00029863,4]
[328821353,1717837847500,-519.71611072,0.00029863,4]
[328821354,1717837847510,-500.0,0.00029863,4]
[328821355,1717837847520,-500.0,0.00029863,4]
[328821356,1717837847529,-500.0,0.00029863,4]
[328821357,1717837847539,-500.0,0.00029863,4]
[328821358,1717837847549,-500.0,0.00029863,4]
[328821359,1717837847559,-287.03843439,0.00029863,4]
[328821360,1717837847569,-511.0641833,0.00029863,4]
[328821361,1717837847579,-500.0,0.00029863,4]
[328821362,1717837847589,-500.0,0.00029863,4]
[328821363,1717837847598,-500.0,0.00029863,4]
[328821364,1717837847608,-279.83448022,0.00029863,4]
[328821365,1717837847617,-518.44115899,0.00029863,4]
[328821366,1717837847627,-500.0,0.00029863,4]
[328821367,1717837847637,-500.0,0.00029863,4]
[328821368,1717837847647,-511.79469485,0.00029863,4]
[328821369,1717837847658,-369.89351862,0.00029863,4]
[328821370,1717837847668,-250.0,0.00029863,4]
[328821371,1717837847678,-250.0,0.00029863,4]
[328821372,1717837847688,-250.0,0.00029863,4]
[328821373,1717837847698,-250.0,0.00029863,4]
[328821374,1717837847708,-250.0,0.00029863,4]
[328821375,1717837847718,-250.0,0.00029863,4]
[328821376,1717837847727,-380.24254288,0.00029863,4]
[328821377,1717837847737,-500.0,0.00029863,4]
[328821378,1717837847748,-500.0,0.00029863,4]
[328821379,1717837847759,-500.0,0.00029863,4]
[328821380,1717837847768,-500.0,0.00029863,4]
[328821381,1717837847778,-500.0,0.00029863,4]
[328821382,1717837847788,-500.0,0.00029863,4]
[328821383,1717837847798,-183.11253755,0.00029863,4]
[328821384,1717837847808,-500.0,0.00029863,4]
[328821385,1717837847818,-500.0,0.00029863,4]
[328821386,1717837847829,-500.0,0.00029863,4]
[328821387,1717837847840,-500.0,0.00029863,4]